fUST/lending_fUST_20251011
["ID","MTS","AMOUNT","RATE_DAILY","PERIOD"]
[390811786,1760169041563,-500.0,0.00027397,9]
[390811787,1760169041573,-500.0,0.00027397,9]
[390811788,1760169041583,-500.0,0.00027397,9]
[390811789,1760169041592,-500.0,0.00027397,9]
[390811790,1760169041602,-500.0,0.00027397,9]
[390811791,1760169041611,-500.0,0.00027397,9]
[390811792,1760169041620,-500.0,0.00027397,9]
[390811793,1760169041629,-500.0,0.00027397,9]
[390811794,1760169041638,-500.0,0.00027397,9]
[390811795,1760169041650,-500.0,0.00027397,9]
[390811796,1760169041659,-500.0,0.00027397,9]
[390811797,1760169041671,-500.0,0.00027397,9]
[390811798,1760169041692,-500.0,0.00027397,9]
[390811799,1760169041714,-500.0,0.00027397,9]
[390811800,1760169041725,-500.0,0.00027397,9]
[390811801,1760169041736,-500.0,0.00027397,9]
[390811802,1760169041746,-500.0,0.00027397,9]
[390811803,1760169041755,-500.0,0.00027397,9]
[390811804,1760169041767,-508.88140827,0.00027397,9]
[390811805,1760169041783,-500.0,0.00027397,9]
[390811806,1760169041794,-500.0,0.00027397,9]
[390811807,1760169041805,-500.0,0.00027397,9]
[390811808,1760169041814,-500.0,0.00027397,9]
[390811809,1760169041827,-500.0,0.00027397,2]
[390811810,1760169041838,-500.92219213,0.00027397,9]
[390811811,1760169041849,-500.0,0.00027397,9]
[390811812,1760169041858,-500.0,0.00027397,9]
[390811813,1760169041868,-500.0,0.00027397,9]
[390811814,1760169041877,-500.0,0.00027397,9]
[390811815,1760169041886,-500.0,0.00027397,9]
[390811816,1760169041895,-500.0,0.00027397,9]
[390811817,1760169041907,-500.0,0.00027397,9]
[390811818,1760169041918,-500.0,0.00027397,9]
[390811819,1760169041927,-500.0,0.00027397,9]
[390811820,1760169041937,-500.0,0.00027397,9]
[390811821,1760169041946,-500.0,0.00027397,9]
[390811822,1760169041955,-500.0,0.00027397,9]
[390811823,1760169041965,-382.56367612,0.00027397,9]
[390811824,1760169041974,-500.0,0.00027397,9]
[390811825,1760169041983,-500.0,0.00027397,9]
[390811826,1760169041993,-518.21137698,0.00027397,9]
[390811827,1760169042002,-500.0,0.00027397,9]
[390811828,1760169042011,-500.0,0.00027397,9]
[390811829,1760169042021,-500.0,0.00027397,9]
[390811830,1760169042031,-500.0,0.00027397,9]
[390811831,1760169042041,-500.0,0.00027397,9]
[390811832,1760169042051,-500.0,0.00027397,9]
[390811833,1760169042060,-500.0,0.00027397,9]
[390811834,1760169042069,-526.44908795,0.00027397,9]
[390811835,1760169042079,-516.44936112,0.00027397,9]
[390811836,1760169042089,-500.0,0.00027397,9]
[390811837,1760169042099,-500.0,0.00027397,9]
[390811838,1760169042109,-500.0,0.00027397,9]
[390811839,1760169042118,-500.0,0.00027397,9]
[390811840,1760169042306,-500.0,0.00027397,9]
[390811841,1760169042315,-500.0,0.00027397,9]
[390811842,1760169042324,-500.0,0.00027397,9]
[390811843,1760169042334,-500.0,0.00027397,9]
[390811844,1760169042344,-500.0,0.00027397,9]
[390811845,1760169042353,-500.0,0.00027397,9]
[390811846,1760169042362,-500.0,0.00027397,9]
[390811847,1760169042371,-500.0,0.00027397,9]
[390811848,1760169042381,-500.0,0.00027397,9]
[390811849,1760169042390,-500.0,0.00027397,9]
[390811850,1760169042400,-500.0,0.00027397,9]
[390811851,1760169042410,-500.0,0.00027397,9]
[390811852,1760169042419,-500.0,0.00027397,9]
[390811853,1760169042428,-500.0,0.00027397,9]
[390811854,1760169042438,-500.0,0.00027397,9]
[390811855,1760169042448,-500.0,0.00027397,9]
[390811856,1760169042457,-500.0,0.00027397,9]
[390811857,1760169042466,-500.0,0.00027397,9]
[390811858,1760169042476,-500.0,0.00027397,9]
[390811859,1760169042485,-500.0,0.00027397,9]
[390811860,1760169042495,-500.0,0.00027397,9]
[390811861,1760169042504,-500.0,0.00027397,9]
[390811862,1760169042514,-500.0,0.00027397,9]
[390811863,1760169042524,-500.0,0.00027397,9]
[390811864,1760169042534,-500.0,0.00027397,9]
[390811865,1760169042546,-375.36,0.00027397,9]
[390811866,1760169042555,-731.12,0.00027397,9]
[390811867,1760169042564,-731.12,0.00027397,9]
[390811868,1760169042573,-731.12,0.00027397,9]
[390811869,1760169042583,-731.12,0.00027397,9]
[390811870,1760169042592,-731.12,0.00027397,9]
[390811871,1760169042604,-731.12,0.00027397,9]
[390811872,1760169042615,-731.12,0.00027397,9]
[390811873,1760169042624,-731.12,0.00027397,9]
[390811874,1760169042634,-731.12,0.00027397,9]
[390811875,1760169042642,-731.12,0.00027397,9]
[390811876,1760169042657,-731.12,0.00027397,9]
[390811877,1760169042666,-731.12,0.00027397,9]
[390811878,1760169042675,-731.12,0.00027397,9]
[390811879,1760169042684,-702.57796443,0.00027397,9]
[390811882,1760169042720,-28.54203557,0.00027397,9]
[390811883,1760169042732,-278.88041018,0.00027397,9]
[390811886,1760169043260,-277.52567356,0.00027287,10]
[390811887,1760169043272,-6.06432644,0.00027287,10]
[390811888,1760169043282,-452.23958982,0.00027397,9]
[390811890,1760169043291,-731.12,0.00027397,9]
[390811892,1760169043301,-731.12,0.00027397,9]
[390811893,1760169043310,-731.12,0.00027397,9]
[390811894,1760169043320,-731.12,0.00027397,9]
[390811895,1760169043329,-731.12,0.00027397,9]
[390811896,1760169043339,-731.12,0.00027397,9]
[390811897,1760169043348,-731.12,0.00027397,9]
[390811898,1760169043358,-731.12,0.00027397,9]
[390811899,1760169043367,-731.26,0.00027397,9]
[390811900,1760169043376,-500.0,0.00027397,9]
[390811901,1760169043385,-500.0,0.00027397,9]
[390811902,1760169043394,-500.0,0.00027397,9]
[390811903,1760169043405,-500.0,0.00027397,9]
[390811904,1760169043415,-543.05,0.00027397,9]
[390811905,1760169043424,-140.10755566,0.00027397,9]
[390811935,1760169046385,-359.89244434,0.00027397,9]
[390811936,1760169046394,-500.0,0.00027397,9]
[390811937,1760169046407,-500.0,0.00027397,9]
[390811938,1760169046416,-500.0,0.00027397,9]
[390811939,1760169046425,-500.0,0.00027397,9]
[390811941,1760169046435,-500.0,0.00027397,9]
[390811942,1760169046444,-500.0,0.00027397,9]
[390811944,1760169046453,-500.0,0.00027397,9]
[390811946,1760169046463,-500.0,0.00027397,9]
[390811948,1760169046472,-500.0,0.00027397,9]
[390811949,1760169046481,-500.0,0.00027397,9]
[390811950,1760169046490,-500.0,0.00027397,9]
[390811951,1760169046500,-500.0,0.00027397,9]
[390811953,1760169046509,-500.0,0.00027397,9]
[390811954,1760169046519,-518.02833744,0.00027397,9]
[390811955,1760169046528,-500.0,0.00027397,9]
[390811956,1760169046537,-500.0,0.00027397,9]
[390811957,1760169046548,-500.0,0.00027397,9]
[390811958,1760169046558,-500.0,0.00027397,9]
[390811959,1760169046567,-500.0,0.00027397,9]
[390811960,1760169046576,-500.0,0.00027397,9]
[390811961,1760169046585,-500.0,0.00027397,9]
[390811962,1760169046595,-522.98,0.00027397,9]
[390811963,1760169046604,-500.0,0.00027397,9]
[390811964,1760169046613,-500.0,0.00027397,9]
[390811965,1760169046622,-500.0,0.00027397,9]
[390811966,1760169046631,-500.0,0.00027397,9]
[390811967,1760169046640,-339.16,0.00027397,9]
[390811968,1760169046649,-1504.32,0.00027397,9]
[390811969,1760169046663,-1504.32,0.00027397,9]
[390811970,1760169046673,-1504.32,0.00027397,9]
[390811972,1760169046683,-1504.32,0.00027397,9]
[390811974,1760169046692,-1504.32,0.00027397,9]
[390811975,1760169046701,-1504.32,0.00027397,9]
[390811976,1760169046710,-1504.32,0.00027397,9]
[390811977,1760169046719,-1504.32,0.00027397,9]
[390811978,1760169046731,-604.83788829,0.00027397,9]
[390811979,1760169046743,-1504.32,0.00027397,9]
[390811980,1760169046755,-1504.32,0.00027397,9]
[390811981,1760169046771,-1504.32,0.00027397,9]
[390811982,1760169046783,-1504.32,0.00027397,9]
[390811983,1760169046796,-798.26132993,0.00027397,9]
[390811984,1760169154430,417.15472785,0.00025205,2]
[390811985,1760169190763,1859.59487448,0.00029728,120]
[390811986,1760169194718,348.512,0.00027397,120]
[390811987,1760169195706,1000.0,0.00027397,120]
[390811988,1760169230457,-153.0,0.00025698,2]
[390811989,1760169230486,-153.0,0.00025699,2]
[390811990,1760169230742,-153.0,0.00025703,2]
[390811991,1760169230771,-153.0,0.00025703,2]
[390811992,1760169230798,-154.84,0.00026988,7]
[390811993,1760169230832,-152.66,0.00026988,7]
[390811994,1760169230860,-154.84,0.00027088,7]
[390811995,1760169230891,-152.66,0.00027088,7]
[390811996,1760169230921,-862.29,0.00027177,3]
[390811997,1760169230949,-431.14,0.00027177,3]
[390811998,1760169230978,-236.32,0.00027177,10]
[390811999,1760169232718,-3062.65657896,0.00027187,2]
[390812000,1760169232732,-10000.01,0.00027187,2]
[390812001,1760169232756,-10000.01,0.00027187,2]
[390812002,1760169232844,-10000.01,0.00027187,2]
[390812003,1760169232862,-10000.01,0.00027187,2]
[390812004,1760169232880,-10000.01,0.00027187,2]
[390812005,1760169233414,150.0,0.00019635,2]
[390812006,1760169233834,150.0,0.0002142,2]
[390812007,1760169234294,150.0,0.00023205,2]
[390812008,1760169234752,48.07679597,0.0002499,2]
[390812009,1760169234775,101.92320403,0.0002499,2]
[390812010,1760169238472,-150.0,0.00026775,2]
[390812011,1760169238501,-215.57,0.00027177,3]
[390812012,1760169238585,-8903.3,0.00027187,2]
[390812013,1760169238599,-10000.01,0.00027187,2]
[390812014,1760169238624,-10000.01,0.00027187,2]
[390812015,1760169238661,-10000.01,0.00027187,2]
[390812016,1760169238815,-10000.01,0.00027187,2]
[390812017,1760169238984,-10000.01,0.00027187,2]
[390812018,1760169239048,-10000.01,0.00027187,2]
[390812019,1760169239172,-10000.01,0.00027187,2]
[390812020,1760169239311,-10000.01,0.00027187,2]
[390812021,1760169247714,3000.0,0.00029728,120]
[390812023,1760169256691,2000.0,0.00027396,120]
[390812024,1760169256994,2000.0,0.00027396,120]
[390812025,1760169257427,2000.0,0.00027396,120]
[390812026,1760169257566,165.08,0.00027396,120]
[390812027,1760169257597,-220.52147883,0.00024953,10]
[390812028,1760169270833,152.0,0.00024,120]
[390812029,1760169272215,152.0,0.000258,120]
[390812030,1760169288230,150.5,0.00027177,120]
[390812031,1760169288662,150.5,0.00027167,120]
[390812032,1760169289139,290.18,0.00027157,120]
[390812033,1760169390422,154.0,0.00024,120]
[390812034,1760169392222,154.0,0.000259,120]
[390812035,1760169408231,1487.0,0.00027177,120]
[390812036,1760169408661,1487.0,0.00027167,120]
[390812037,1760169409279,1487.0,0.00027157,120]
[390812038,1760169409726,1487.0,0.00027387,120]
[390812039,1760169410168,1487.0,0.00027377,120]
[390812040,1760169410603,1487.0,0.00027367,120]
[390812041,1760169411048,1487.0,0.00027387,120]
[390812042,1760169411483,1487.0,0.00027377,120]
[390812044,1760169603190,598.0,0.00023,90]
[390812045,1760169603226,160.0,0.00024,30]
[390812046,1760169603299,1118.0,0.00023,90]
[390812063,1760169634955,200.0,0.00027,120]
[390812065,1760169763716,3008.5,0.00027397,120]
[390812066,1760169769175,297.0,0.0002697,120]
[390812067,1760169769603,297.0,0.0002696,120]
[390812068,1760169770081,297.0,0.0002695,120]
[390812069,1760169770512,297.0,0.00027386,120]
[390812070,1760169770969,297.0,0.00027376,120]
[390812071,1760169771401,297.0,0.00027366,120]
[390812072,1760169771846,297.0,0.00027386,120]
[390812073,1760169772286,297.0,0.00027376,120]
[390812074,1760169862647,1152.1288285,0.00023288,30]
[390812100,1760170129787,150.5,0.0002549,120]
[390812101,1760170130242,150.5,0.0002548,120]
[390812102,1760170130681,300.85,0.0002547,120]
[390812183,1760170154130,-5000.0,0.00017208,10]
[390812184,1760170154151,-5000.0,0.00017382,10]
[390812185,1760170154172,-300.0,0.00017556,2]
[390812186,1760170154194,-5000.0,0.00017558,10]
[390812187,1760170154215,-150.0,0.00017558,2]
[390812188,1760170154234,-500.0,0.000178,2]
[390812189,1760170154253,-1200.0,0.00017913,2]
[390812190,1760170154275,-1707.42,0.00018081,2]
[390812191,1760170154295,-172.5,0.00018158,2]
[390812192,1760170154316,-195.0,0.00018758,2]
[390812193,1760170154336,-1000.0,0.00018896,2]
[390812194,1760170154357,-3414.84,0.00018942,2]
[390812195,1760170154378,-160.0,0.00018972,2]
[390812196,1760170154398,-298.08050243,0.00019027,10]
[390812197,1760170154420,-420.0,0.00019164,2]
[390812198,1760170154442,-217.5,0.00019358,2]
[390812199,1760170154464,-300.0,0.00019555,2]
[390812200,1760170154489,-300.0,0.00019555,2]
[390812201,1760170154532,-300.0,0.00019555,2]
[390812202,1760170154571,-300.0,0.00019555,2]
[390812203,1760170154610,-300.0,0.00019555,2]
[390812204,1760170154651,-300.0,0.00019555,2]
[390812205,1760170154692,-300.0,0.00019555,2]
[390812206,1760170154732,-300.0,0.00019555,2]
[390812207,1760170154755,-300.0,0.00019555,2]
[390812208,1760170154775,-300.0,0.00019555,2]
[390812209,1760170154795,-300.0,0.00019555,2]
[390812210,1760170154815,-300.0,0.00019555,2]
[390812211,1760170154835,-300.0,0.00019555,2]
[390812212,1760170154855,-300.0,0.00019555,2]
[390812213,1760170154878,-300.0,0.00019555,2]
[390812214,1760170154898,-830.0,0.00019643,2]
[390812215,1760170154918,-5122.26,0.00019803,2]
[390812216,1760170154940,-240.0,0.00019958,2]
[390812217,1760170154959,-374.68730839,0.00019992,2]
[390812218,1760170154989,-155.0,0.00020082,3]
[390812219,1760170155015,-1000.0,0.00020319,2]
[390812220,1760170155042,-262.5,0.00020558,2]
[390812221,1760170155073,-6829.68,0.00020664,2]
[390812222,1760170155112,-304.0,0.0002092,2]
[390812223,1760170155145,-225.84437853,0.00021058,4]
[390812224,1760170155172,-155.34214629,0.00021158,2]
[390812225,1760170155197,-151.0,0.00021364,7]
[390812226,1760170155225,-8537.1,0.00021525,2]
[390812227,1760170155253,-10244.52,0.00022386,2]
[390812228,1760170155276,-2609.37557469,0.00023,10]
[390812229,1760170155303,-600.0,0.00023111,20]
[390812230,1760170155332,-11951.94,0.00023247,2]
[390812231,1760170155365,-500.0,0.00023614,2]
[390812232,1760170155395,-160.0,0.00023614,2]
[390812233,1760170155430,-298.08050243,0.00023614,2]
[390812234,1760170155453,-500.0,0.00023888,2]
[390812235,1760170155482,-13659.36,0.00024108,2]
[390812236,1760170155515,-345.24188632,0.00024162,2]
[390812237,1760170155540,-173.221,0.00024429,7]
[390812238,1760170155569,-152.29549428,0.000249,7]
[390812239,1760170155600,-1217.77,0.00024942,10]
[390812240,1760170155628,-135647.514272,0.00024952,2]
[390812241,1760170155657,-1537.7977629,0.00024952,2]
[390812242,1760170155694,-500.0,0.00024962,2]
[390812243,1760170155724,-250.0,0.00024962,2]
[390812244,1760170155754,-151.0,0.00024962,2]
[390812245,1760170155781,-500.0,0.00024962,2]
[390812246,1760170155809,-250.0,0.00024962,2]
[390812247,1760170155839,-151.0,0.00024962,2]
[390812248,1760170155864,-151.0,0.00024962,2]
[390812249,1760170155893,-151.0,0.00024962,2]
[390812250,1760170155922,-519.30491592,0.00024962,2]
[390812251,1760170155951,-151.0,0.00024962,2]
[390812252,1760170155978,-151.0,0.00024962,2]
[390812253,1760170156002,-151.0,0.00024962,2]
[390812254,1760170156026,-151.0,0.00024962,2]
[390812255,1760170156050,-151.0,0.00024962,2]
[390812256,1760170156073,-151.0,0.00024962,2]
[390812257,1760170156102,-202.08639383,0.00024962,2]
[390812258,1760170156128,-151.0,0.00024962,2]
[390812259,1760170156152,-151.0,0.00024962,2]
[390812260,1760170156177,-151.0,0.00024962,2]
[390812261,1760170156201,-151.0,0.00024962,2]
[390812262,1760170156227,-162.86771405,0.00024962,2]
[390812263,1760170156251,-500.0,0.00024962,2]
[390812264,1760170156275,-255.4525165,0.00024962,2]
[390812265,1760170156299,-504.12458136,0.00024962,2]
[390812266,1760170156322,-3000.0,0.00024962,2]
[390812267,1760170156345,-250.0,0.00024962,2]
[390812268,1760170156370,-250.0,0.00024962,2]
[390812269,1760170156392,-250.0,0.00024962,2]
[390812270,1760170156418,-250.0,0.00024962,2]
[390812271,1760170156441,-250.0,0.00024962,2]
[390812272,1760170156468,-250.0,0.00024962,2]
[390812273,1760170156490,-250.0,0.00024962,2]
[390812274,1760170156514,-279.66141207,0.00024962,2]
[390812275,1760170156536,-250.0,0.00024962,2]
[390812276,1760170156559,-250.0,0.00024962,2]
[390812277,1760170156582,-250.0,0.00024962,2]
[390812278,1760170156605,-250.0,0.00024962,2]
[390812279,1760170156629,-250.0,0.00024962,2]
[390812280,1760170156653,-250.0,0.00024962,2]
[390812281,1760170156672,-250.0,0.00024962,2]
[390812282,1760170156692,-18603.8837,0.00024962,2]
[390812283,1760170156710,-250.0,0.00024962,2]
[390812284,1760170156732,-250.0,0.00024962,2]
[390812285,1760170156755,-250.0,0.00024962,2]
[390812286,1760170156773,-250.0,0.00024962,2]
[390812287,1760170156793,-15366.78,0.00024969,2]
[390812288,1760170157073,-352.47604671,0.00025386,2]
[390812289,1760170157098,-320.0,0.0002542,2]
[390812290,1760170157120,-720.0,0.00025422,20]
[390812291,1760170157141,-135647.514272,0.000255,2]
[390812292,1760170157163,-1537.7977629,0.000255,2]
[390812293,1760170157182,-19292.2273969,0.0002551,2]
[390812294,1760170157203,-168.0,0.00025668,2]
[390812295,1760170157222,-151.0,0.00025694,2]
[390812296,1760170157243,-151.0,0.00025749,2]
[390812297,1760170157263,-151.0,0.00025804,2]
[390812298,1760170157283,-1259.21610593,0.00025816,2]
[390812299,1760170157303,-17074.2,0.0002583,2]
[390812300,1760170157321,-151.0,0.00025858,2]
[390812301,1760170157342,-319.0,0.00025896,7]
[390812302,1760170157361,-151.0,0.00025896,7]
[390812303,1760170157380,-151.0,0.00025896,7]
[390812304,1760170157400,-151.0,0.00025896,7]
[390812305,1760170157420,-151.0,0.00025896,2]
[390812306,1760170157440,-151.0,0.00025896,7]
[390812307,1760170157460,-151.0,0.00025896,7]
[390812308,1760170157480,-500.0,0.00025896,7]
[390812309,1760170157500,-151.0,0.00025913,2]
[390812310,1760170157518,-150.0,0.00025921,7]
[390812311,1760170157538,-1321.28022875,0.00025927,2]
[390812312,1760170157557,-151.0,0.00025951,7]
[390812313,1760170157575,-151.0,0.00025951,7]
[390812314,1760170157594,-151.0,0.00025951,7]
[390812315,1760170157613,-151.0,0.00025951,7]
[390812316,1760170157632,-151.0,0.00025951,7]
[390812317,1760170157651,-500.0,0.00025951,7]
[390812318,1760170157673,-135647.514272,0.0002596,2]
[390812319,1760170157693,-1537.7977629,0.0002596,2]
[390812320,1760170157711,-245.0,0.00025968,2]
[390812321,1760170157730,-500.0,0.00025969,2]
[390812322,1760170157750,-500.0,0.00025969,2]
[390812323,1760170157770,-500.0,0.00025969,2]
[390812324,1760170157788,-500.0,0.00025969,2]
[390812325,1760170157807,-500.0,0.00025969,2]
[390812326,1760170157826,-500.0,0.00025969,2]
[390812327,1760170157846,-500.0,0.00025969,2]
[390812328,1760170157865,-500.0,0.00025969,2]
[390812329,1760170157885,-500.0,0.00025969,2]
[390812330,1760170157904,-605.0,0.00025969,2]
[390812331,1760170157926,-500.0,0.00025969,2]
[390812332,1760170157946,-408.16228137,0.00025969,2]
[390812333,1760170157965,-500.0,0.00025969,2]
[390812334,1760170157984,-500.0,0.00025969,2]
[390812335,1760170158004,-500.0,0.00025969,2]
[390812336,1760170158024,-500.0,0.00025969,2]
[390812337,1760170158043,-500.0,0.00025969,2]
[390812338,1760170158062,-304.2109064,0.00025969,2]
[390812339,1760170158086,-500.0,0.00025969,2]
[390812340,1760170158107,-500.0,0.00025969,2]
[390812341,1760170158137,-500.0,0.00025969,2]
[390812342,1760170158163,-500.0,0.00025969,2]
[390812343,1760170158185,-500.0,0.00025969,2]
[390812344,1760170158208,-500.0,0.00025969,2]
[390812345,1760170158230,-500.0,0.00025969,2]
[390812346,1760170158252,-500.0,0.00025969,2]
[390812347,1760170158272,-500.0,0.00025969,2]
[390812348,1760170158293,-500.0,0.00025969,2]
[390812349,1760170158314,-500.0,0.00025969,2]
[390812350,1760170158334,-500.0,0.00025969,2]
[390812351,1760170158356,-500.0,0.00025969,2]
[390812352,1760170158380,-500.0,0.00025969,2]
[390812353,1760170158401,-194.98633455,0.00025969,2]
[390812354,1760170158420,-500.0,0.00025969,2]
[390812355,1760170158441,-500.0,0.00025969,2]
[390812356,1760170158463,-359.71893925,0.00025969,2]
[390812357,1760170158486,-500.0,0.00025969,2]
[390812358,1760170158505,-500.0,0.00025969,2]
[390812359,1760170158525,-383.83930992,0.00025969,2]
[390812360,1760170158544,-380.88629418,0.00025969,2]
[390812361,1760170158562,-500.0,0.00025969,2]
[390812362,1760170158582,-500.0,0.00025969,2]
[390812363,1760170158600,-500.0,0.00025969,2]
[390812364,1760170158621,-500.0,0.00025969,2]
[390812365,1760170158640,-193.10639068,0.00025969,2]
[390812366,1760170158659,-500.0,0.00025969,2]
[390812367,1760170158678,-500.0,0.00025969,2]
[390812368,1760170158697,-500.0,0.00025969,2]
[390812369,1760170158716,-500.0,0.00025969,2]
[390812370,1760170158740,-500.0,0.00025969,2]
[390812371,1760170158759,-500.0,0.00025969,2]
[390812372,1760170158779,-500.0,0.00025969,2]
[390812373,1760170158797,-500.0,0.00025969,2]
[390812374,1760170158816,-500.0,0.00025969,2]
[390812375,1760170158835,-500.0,0.00025969,2]
[390812376,1760170158854,-500.0,0.00025969,2]
[390812377,1760170158875,-500.0,0.00025969,2]
[390812378,1760170158893,-500.0,0.00025969,2]
[390812379,1760170158916,-500.0,0.00025969,2]
[390812380,1760170158936,-500.0,0.00025969,2]
[390812381,1760170158954,-500.0,0.00025969,2]
[390812382,1760170158973,-500.0,0.00025969,2]
[390812383,1760170158993,-500.0,0.00025969,2]
[390812384,1760170159012,-500.0,0.00025969,2]
[390812385,1760170159031,-500.0,0.00025969,2]
[390812386,1760170159049,-500.0,0.00025969,2]
[390812387,1760170159068,-500.0,0.00025969,2]
[390812388,1760170159089,-500.0,0.00025969,2]
[390812389,1760170159109,-500.0,0.00025969,2]
[390812390,1760170159131,-300.0,0.00025969,2]
[390812391,1760170159153,-500.0,0.00025969,2]
[390812392,1760170159173,-500.0,0.00025969,2]
[390812393,1760170159192,-500.0,0.00025969,2]
[390812394,1760170159214,-500.0,0.00025969,2]
[390812395,1760170159233,-500.0,0.00025969,2]
[390812396,1760170159255,-500.0,0.00025969,2]
[390812397,1760170159277,-500.0,0.00025969,2]
[390812398,1760170159301,-575.0,0.00025969,2]
[390812399,1760170159321,-500.0,0.00025969,2]
[390812400,1760170159340,-500.0,0.00025969,2]
[390812401,1760170159361,-500.0,0.00025969,2]
[390812402,1760170159382,-500.0,0.00025969,2]
[390812403,1760170159402,-500.0,0.00025969,2]
[390812404,1760170159422,-500.0,0.00025969,2]
[390812405,1760170159441,-500.0,0.00025969,2]
[390812406,1760170159459,-500.0,0.00025969,2]
[390812407,1760170159479,-500.0,0.00025969,2]
[390812408,1760170159497,-500.0,0.00025969,2]
[390812409,1760170159516,-500.0,0.00025969,2]
[390812410,1760170159535,-500.0,0.00025969,2]
[390812411,1760170159556,-500.0,0.00025969,2]
[390812412,1760170159576,-500.0,0.00025969,2]
[390812413,1760170159596,-500.0,0.00025969,2]
[390812414,1760170159617,-500.0,0.00025969,2]
[390812415,1760170159641,-500.0,0.00025969,2]
[390812416,1760170159663,-500.0,0.00025969,2]
[390812417,1760170159681,-500.0,0.00025969,2]
[390812418,1760170159701,-500.0,0.00025969,2]
[390812419,1760170159722,-500.0,0.00025969,2]
[390812420,1760170159742,-500.0,0.00025969,2]
[390812421,1760170159762,-500.0,0.00025969,2]
[390812422,1760170159783,-500.0,0.00025969,2]
[390812423,1760170159803,-427.9766476,0.00025969,2]
[390812424,1760170159824,-500.0,0.00025969,2]
[390812425,1760170159845,-500.0,0.00025969,2]
[390812426,1760170159866,-500.0,0.00025969,2]
[390812427,1760170159891,-500.0,0.00025969,2]
[390812428,1760170159916,-500.0,0.00025969,2]
[390812429,1760170159939,-500.0,0.00025969,2]
[390812430,1760170159964,-500.0,0.00025969,2]
[390812431,1760170160132,-500.0,0.00025969,2]
[390812432,1760170160166,-500.0,0.00025969,2]
[390812433,1760170160188,-500.0,0.00025969,2]
[390812434,1760170160209,-273.28721624,0.00025969,2]
[390812435,1760170160230,-500.0,0.00025969,2]
[390812436,1760170160253,-500.0,0.00025969,2]
[390812437,1760170160274,-500.0,0.00025969,2]
[390812438,1760170160294,-500.0,0.00025969,2]
[390812439,1760170160316,-500.0,0.00025969,2]
[390812440,1760170160337,-500.0,0.00025969,2]
[390812441,1760170160359,-500.0,0.00025969,2]
[390812442,1760170160380,-500.0,0.00025969,2]
[390812443,1760170160403,-500.0,0.00025969,2]
[390812444,1760170160424,-500.0,0.00025969,2]
[390812445,1760170160445,-500.0,0.00025969,2]
[390812446,1760170160466,-500.0,0.00025969,2]
[390812447,1760170160488,-500.0,0.00025969,2]
[390812448,1760170160510,-500.0,0.00025969,2]
[390812449,1760170160532,-500.0,0.00025969,2]
[390812450,1760170160552,-500.0,0.00025969,2]
[390812451,1760170160572,-500.0,0.00025969,2]